fUSD/lending_fUSD_20260131
["ID","MTS","AMOUNT","RATE_DAILY","PERIOD"]
[404153832,1769884232396,-2282.19,0.00016631,2]
[404153833,1769884232406,-166.66,0.00016672,2]
[404153834,1769884232415,-500.0,0.00016695,2]
[404153835,1769884232424,-434.36904423,0.00016695,2]
[404153836,1769884232434,-150.0,0.00016788,2]
[404153837,1769884232446,-1014.7381768,0.00016878,2]
[404153838,1769884232455,-946.65,0.00016903,2]
[404153839,1769884232464,-500.97262911,0.00016921,2]
[404153840,1769884232473,-500.0,0.00016921,2]
[404153841,1769884232483,-987.43707443,0.00016921,2]
[404153842,1769884232493,-614.51163375,0.00016921,2]
[404153843,1769884232502,-500.0,0.00016921,2]
[404153844,1769884232511,-178.71486858,0.00016921,2]
[404153845,1769884232520,-594.19923035,0.00016921,2]
[404153846,1769884232531,-500.0,0.00016921,2]
[404153847,1769884232542,-3448.21527701,0.00017,2]
[404153848,1769884232552,-166.66,0.00017002,2]
[404153849,1769884232563,-179.0,0.0001704,2]
[404153850,1769884232573,-168.73,0.00017043,2]
[404153851,1769884232583,-473.34050397,0.000171,2]
[404153852,1769884232593,-1500.0,0.000172,2]
[404153853,1769884232603,-433.0,0.00017289,2]
[404153854,1769884232614,-166.66,0.00017332,2]
[404153855,1769884232623,-500.0,0.00017499,2]
[404153856,1769884232632,-500.0,0.00017499,2]
[404153857,1769884232642,-500.0,0.00017499,2]
[404153858,1769884232652,-500.0,0.00017499,2]
[404153859,1769884232662,-500.0,0.00017499,2]
[404153860,1769884232673,-500.0,0.00017499,2]
[404153861,1769884232682,-500.0,0.00017499,2]
[404153862,1769884232693,-500.0,0.00017499,2]
[404153863,1769884232703,-217.82839612,0.00017499,2]
[404153864,1769884232713,-12036.14732766,0.000175,3]
[404153865,1769884232725,-25226.64525448,0.000175,3]
[404153866,1769884232737,-353.8945,0.000175,3]
[404153867,1769884232749,-1136.65670646,0.000175,3]
[404153868,1769884232762,-2494.90422684,0.000175,3]
[404153869,1769884232778,-392.26,0.000175,3]
[404153877,1769884237384,-8264.53554333,0.000175,3]
[404153883,1769884237438,-426.85620312,0.000175,3]
[404153884,1769884237600,-5717.06548,0.000175,3]
[404154045,1769884239482,-369.75633859,0.000175,3]
[404154046,1769884239492,-193.0,0.00017554,2]
[404154047,1769884239502,-51.18085314,0.0001764,2]
[404154048,1769884239514,-431.68655482,0.0001764,2]
[404154056,1769884239642,-2297.11259204,0.0001764,2]
[404154058,1769884239653,-191.143,0.0001764,2]
[404154060,1769884239663,-818.99953819,0.0001764,2]
[404154062,1769884239673,-168.0,0.00017665,2]
[404154064,1769884239683,-946.65,0.00017671,2]
[404154066,1769884239692,-838.0,0.0001768,2]
[404154069,1769884239706,-72004.2352,0.00017681,2]
[404154071,1769884239716,-193.0,0.00017684,2]
[404154073,1769884239725,-193.0,0.00017696,2]
[404154075,1769884239735,-482.883945,0.00017699,2]
[404154077,1769884239744,-250.0,0.00017699,2]
[404154079,1769884239754,-150.0,0.00017699,2]
[404154080,1769884239763,-1000.0,0.00017699,2]
[404154082,1769884239772,-1000.0,0.00017699,2]
[404154083,1769884239782,-1000.0,0.00017699,2]
[404154085,1769884239791,-1000.0,0.00017699,2]
[404154087,1769884239801,-1000.0,0.00017699,2]
[404154089,1769884239811,-861.016,0.00017699,2]
[404154091,1769884239820,-150.0,0.00017699,2]
[404154093,1769884239829,-150.0,0.00017699,2]
[404154095,1769884239839,-150.0,0.00017699,2]
[404154097,1769884239848,-150.0,0.00017699,2]
[404154099,1769884239859,-500.0,0.00017699,2]
[404154101,1769884239869,-150.0,0.00017699,2]
[404154103,1769884239879,-150.0,0.00017699,2]
[404154105,1769884239892,-500.0,0.00017699,2]
[404154107,1769884239902,-165.88836911,0.00017699,2]
[404154109,1769884239911,-150.0,0.00017699,2]
[404154111,1769884239921,-500.0,0.00017699,2]
[404154113,1769884239930,-500.0,0.00017699,2]
[404154115,1769884239940,-500.0,0.00017699,2]
[404154117,1769884239954,-500.0,0.00017699,2]
[404154119,1769884239964,-500.0,0.00017699,2]
[404154121,1769884239974,-500.0,0.00017699,2]
[404154123,1769884239985,-150.0,0.00017699,2]
[404154125,1769884239994,-150.0,0.00017699,2]
[404154127,1769884240004,-150.0,0.00017699,2]
[404154129,1769884240013,-150.0,0.00017699,2]
[404154131,1769884240023,-150.0,0.00017699,2]
[404154134,1769884240032,-150.0,0.00017699,2]
[404154136,1769884240042,-150.0,0.00017699,2]
[404154138,1769884240051,-150.0,0.00017699,2]
[404154140,1769884240060,-500.0,0.00017699,2]
[404154142,1769884240069,-150.0,0.00017699,2]
[404154144,1769884240082,-168.0,0.00017711,2]
[404154146,1769884240092,-193.0,0.00017726,2]
[404154148,1769884240101,-278.3,0.00017726,2]
[404154150,1769884240110,-150.0,0.00017754,2]
[404154152,1769884240119,-150.0,0.00017754,2]
[404154162,1769884240128,-150.0,0.00017754,2]
[404154164,1769884240221,-150.0,0.00017754,2]
[404154166,1769884240231,-500.0,0.00017754,2]
[404154168,1769884240241,-150.0,0.00017754,2]
[404154171,1769884240254,-150.0,0.00017754,2]
[404154173,1769884240264,-500.0,0.00017754,2]
[404154174,1769884240275,-500.0,0.00017754,2]
[404154176,1769884240286,-500.0,0.00017754,2]
[404154178,1769884240301,-500.0,0.00017754,2]
[404154180,1769884240310,-500.0,0.00017754,2]
[404154182,1769884240321,-500.0,0.00017754,2]
[404154184,1769884240331,-500.0,0.00017754,2]
[404154187,1769884240350,-150.0,0.00017754,2]
[404154189,1769884240360,-150.0,0.00017754,2]
[404154191,1769884240369,-150.0,0.00017754,2]
[404154193,1769884240379,-150.0,0.00017754,2]
[404154195,1769884240388,-150.0,0.00017754,2]
[404154197,1769884240397,-150.0,0.00017754,2]
[404154199,1769884240406,-150.0,0.00017754,2]
[404154201,1769884240416,-500.0,0.00017754,2]
[404154203,1769884240425,-210.93089075,0.00017799,2]
[404154205,1769884240434,-278.31838242,0.00017799,2]
[404154207,1769884240444,-269.82908296,0.00017799,2]
[404154209,1769884240455,-89275.276,0.000178,2]
[404154211,1769884240465,-200.0,0.00017809,2]
[404154213,1769884240478,-150.0,0.00017809,2]
[404154215,1769884240487,-200.0,0.00017809,2]
[404154217,1769884240496,-150.0,0.00017809,2]
[404154219,1769884240506,-500.0,0.00017809,2]
[404154221,1769884240516,-150.0,0.00017809,2]
[404154223,1769884240525,-306.00668155,0.00017809,2]
[404154226,1769884240535,-300.0,0.00017809,2]
[404154228,1769884240545,-450.0,0.00017809,2]
[404154230,1769884240554,-500.0,0.00017809,2]
[404154232,1769884240564,-156.49262125,0.00017809,2]
[404154234,1769884240573,-500.0,0.00017809,2]
[404154236,1769884240583,-500.0,0.00017809,2]
[404154238,1769884240592,-150.0,0.00017809,2]
[404154240,1769884240601,-200.0,0.00017809,2]
[404154241,1769884240610,-150.0,0.00017809,2]
[404154243,1769884240619,-228.34540262,0.00017809,2]
[404154245,1769884240630,-200.0,0.00017809,2]
[404154248,1769884240640,-200.0,0.00017809,2]
[404154249,1769884240649,-500.0,0.00017809,2]
[404154251,1769884240658,-1000.0,0.00017816,2]
[404154253,1769884240667,-666.66666,0.0001782,2]
[404154256,1769884240681,-666.66667,0.0001782,2]
[404154258,1769884240694,-150.0,0.00017863,2]
[404154260,1769884240707,-150.0,0.00017863,2]
[404154262,1769884240716,-500.0,0.00017863,2]
[404154264,1769884240726,-176.0,0.00017863,2]
[404154266,1769884240735,-500.0,0.00017863,2]
[404154268,1769884240744,-453.45714762,0.00017863,2]
[404154270,1769884240753,-500.0,0.00017863,2]
[404154272,1769884240763,-150.0,0.00017863,2]
[404154274,1769884240772,-150.0,0.00017863,2]
[404154276,1769884240781,-400.0,0.00017863,2]
[404154278,1769884240791,-500.0,0.00017899,2]
[404154280,1769884240800,-500.0,0.00017899,2]
[404154282,1769884240810,-31823.6646,0.000179,2]
[404154284,1769884240819,-439.43309642,0.000179,2]
[404154286,1769884240828,-1025.9145602,0.000179,2]
[404154288,1769884240838,-220.12275018,0.000179,2]
[404154290,1769884240847,-188.74513068,0.000179,2]
[404154292,1769884240858,-3640.75259066,0.000179,2]
[404154294,1769884240867,-150.0,0.00017918,2]
[404154296,1769884240879,-150.0,0.00017918,2]
[404154298,1769884240888,-500.0,0.00017918,2]
[404154300,1769884240898,-500.0,0.00017918,2]
[404154302,1769884240906,-500.0,0.00017918,2]
[404154304,1769884240915,-150.0,0.00017918,2]
[404154306,1769884240925,-150.0,0.00017918,2]
[404154308,1769884240934,-168.73,0.0001794,2]
[404154310,1769884240943,-193.0,0.00017969,2]
[404154312,1769884240956,-500.0,0.00017973,2]
[404154314,1769884240965,-500.0,0.00017973,2]
[404154316,1769884240974,-500.0,0.00017973,2]
[404154318,1769884240983,-500.0,0.00017973,2]
[404154320,1769884240992,-500.0,0.00017973,2]
[404154322,1769884241001,-500.0,0.00017973,2]
[404154324,1769884241010,-500.0,0.00017973,2]
[404154326,1769884241018,-500.0,0.00017973,2]
[404154328,1769884241027,-500.0,0.00017973,2]
[404154330,1769884241037,-500.0,0.00017973,2]
[404154332,1769884241046,-515.88206341,0.00017973,2]
[404154334,1769884241055,-341.336959,0.00017973,2]
[404154336,1769884241064,-500.0,0.00017973,2]
[404154338,1769884241073,-500.0,0.00017973,2]
[404154340,1769884241082,-500.0,0.00017973,2]
[404154342,1769884241091,-500.0,0.00017973,2]
[404154344,1769884241100,-150.2937682,0.00017973,2]
[404154346,1769884241110,-500.0,0.00017973,2]
[404154348,1769884241119,-500.0,0.00017973,2]
[404154350,1769884241131,-375.40383298,0.00017973,2]
[404154352,1769884241140,-584.86466262,0.00017973,2]
[404154353,1769884241149,-500.0,0.00017973,2]
[404154355,1769884241158,-500.0,0.00017973,2]
[404154357,1769884241167,-500.0,0.00017973,2]
[404154358,1769884241176,-500.0,0.00017973,2]
[404154359,1769884241186,-500.0,0.00017973,2]
[404154360,1769884241195,-500.0,0.00017973,2]
[404154361,1769884241207,-500.0,0.00017973,2]
[404154362,1769884241216,-500.0,0.00017973,2]
[404154363,1769884241225,-500.0,0.00017973,2]
[404154365,1769884241234,-500.0,0.00017973,2]
[404154367,1769884241243,-500.0,0.00017973,2]
[404154369,1769884241252,-500.0,0.00017973,2]
[404154371,1769884241267,-185.00968498,0.00017973,2]
[404154373,1769884241283,-500.0,0.00017973,2]
[404154375,1769884241295,-500.0,0.00017973,2]
[404154377,1769884241304,-289.92758812,0.00017973,2]
[404154378,1769884241313,-514.38936739,0.00017973,2]
[404154379,1769884241323,-503.45670612,0.00017973,2]
[404154380,1769884241333,-500.0,0.00017973,2]
[404154381,1769884241343,-500.0,0.00017973,2]
[404154382,1769884241352,-250.0,0.00017973,2]
[404154383,1769884241363,-250.0,0.00017973,2]
[404154384,1769884241373,-500.0,0.00017973,2]
[404154385,1769884241382,-500.0,0.00017973,2]
[404154386,1769884241391,-500.0,0.00017973,2]
[404154387,1769884241400,-250.0,0.00017973,2]
[404154388,1769884241410,-250.0,0.00017973,2]
[404154389,1769884241419,-232.68889938,0.00017973,2]
[404154390,1769884241428,-120281.80035345,0.0001799,3]
[404154391,1769884241437,-158.42425971,0.0001799,2]
[404154392,1769884241446,-19703.8602131,0.00017998,2]
[404154393,1769884241464,-10992.89591716,0.00017998,2]
[404154394,1769884241475,-15256.68467244,0.00017998,2]
[404154395,1769884241486,-828.26399994,0.00017998,2]
[404154396,1769884241498,-503.3937108,0.00017998,2]
[404154397,1769884241509,-706.5276335,0.00017998,2]
[404154398,1769884241549,-784.44,0.00017998,2]
[404154408,1769884242995,-4581.70012656,0.00017998,2]
[404154411,1769884243005,-1021.6268858,0.00017998,2]
[404154415,1769884243014,-2796.67298764,0.00017998,2]
[404154421,1769884243048,-760.33353744,0.00017998,2]
[404154422,1769884243060,-356.518,0.00017998,2]
[404154423,1769884243071,-999.0184054,0.00017998,2]
[404154424,1769884243082,-3493.78769132,0.00017998,2]
[404154425,1769884243092,-272.39317181,0.00017999,2]
[404154426,1769884243102,-500.0,0.00017999,2]
[404154427,1769884243111,-500.0,0.00017999,2]
[404154428,1769884243121,-2.64682064,0.00017999,2]
[404154429,1769884243133,-329.87353581,0.00017999,2]
[404154430,1769884243142,-500.0,0.00017999,2]
[404154431,1769884243153,-370.46257745,0.00017999,2]
[404154432,1769884243164,-129.53742255,0.00017999,2]
[404154433,1769884243174,-420.03557745,0.00017999,2]
[404154434,1769884243185,-134.87217367,0.00017999,2]
[404154435,1769884243195,-516.48312948,0.00017999,2]
[404154436,1769884243207,-160.9536079,0.00017999,2]
[404154437,1769884243216,-394.32,0.00017999,2]
[404154438,1769884243226,-300.0,0.00017999,2]
[404154439,1769884243236,-6594.0,0.00018,2]
[404154440,1769884243245,-45577.44551332,0.00018,2]
[404154441,1769884243266,-189.041252,0.000179,2]
[404154442,1769884243276,-3697.988433,0.00018,2]
[404154443,1769884243291,-1788.0,0.00018,2]
[404154444,1769884243908,-783.12,0.00018,2]
[404154445,1769884243964,-379.70041022,0.00018,2]
[404154462,1769884245421,-1374.88951653,0.00018,2]
[404154463,1769884245432,-7844.04465987,0.00018,2]
[404154464,1769884245528,-1778.6626329,0.00018,2]
[404154465,1769884245539,-1570.19,0.00018,2]
[404154466,1769884245601,-4293.50384044,0.00018,2]
[404154467,1769884245612,-921.5606106,0.00018,2]
[404154468,1769884245640,-850.4150016,0.00018,2]
[404154469,1769884245651,-257.42503718,0.00018,2]
[404154470,1769884245662,-12714.54804547,0.00018,2]
[404154471,1769884245672,-538.8,0.00018,2]
[404154473,1769884245700,-1428.61378995,0.00018,2]
[404154474,1769884245712,-25723.83764168,0.00018,2]
[404154531,1769884755578,323.60827979,0.000435,30]
[404154532,1769884763833,200.40824,0.00014856,10]
[404154534,1769884865878,283.90887576,0.000435,30]
[404154537,1769884964783,16803.17998096,0.000435,30]
[404154538,1769884997383,200.0,0.000435,30]
[404154539,1769885021874,200.0,0.00043501,30]
[404154540,1769885036542,200.0,0.00043501,30]
[404154544,1769885054474,578.20924308,0.00043501,30]
[404154547,1769885081276,200.0,0.00043501,30]
[404154548,1769885092716,500.0,0.00043501,30]
[404154549,1769885107407,500.0,0.00043501,30]
[404154560,1769885135742,500.0,0.00043501,30]
[404154561,1769885146975,500.0,0.00043501,30]
[404154596,1769885181713,582.0,0.00043501,30]
[404154605,1769885208675,200.0,0.00043501,30]
[404154612,1769885226959,50000.0,0.00043501,35]
[404154633,1769885290826,150.0,0.00043501,30]
[404154677,1769885396136,391.1,0.00043501,88]
[404154681,1769885410752,151.0,0.00043501,88]
[404154720,1769885431504,-198.39137328,0.00014557,2]
[404154722,1769885431514,-301.60862672,0.00014557,2]
[404154724,1769885431559,-434.37659752,0.00014557,2]
[404154725,1769885431570,-617.00903923,0.00014557,2]
[404154726,1769885431580,-1200.0,0.00014656,2]
[404154727,1769885431590,-2779.79550611,0.00014657,2]
[404154728,1769885431604,-683.7,0.00014657,2]
[404154729,1769885431624,-703.48189389,0.00014657,2]
[404154730,1769885431634,-1827.1997,0.00014657,2]
[404154731,1769885431644,-26644.95698847,0.00014657,2]
[404154732,1769885431656,-259.79908631,0.00014657,2]
[404154733,1769885431667,-418.75,0.00014657,2]
[404154734,1769885431699,-694.8,0.00014657,2]
[404154735,1769885431711,-5994.48797005,0.00014657,2]
[404154736,1769885431722,-737.02913781,0.00014657,2]
[404154737,1769885431733,-92766.74721736,0.00014657,2]
[404154738,1769885431743,-198.39137328,0.00014657,2]
[404154739,1769885431752,-11145.81352809,0.00014657,2]
[404154740,1769885431762,-173.28165433,0.00014756,2]
[404154742,1769885431771,-159.74598096,0.00014756,2]
[404154744,1769885431781,-526.77967755,0.00014756,2]
[404154745,1769885431791,-504.25758455,0.00014756,2]
[404154747,1769885431801,-511.52174007,0.00014756,2]
[404154749,1769885431811,-492.43798192,0.00014756,2]
[404154751,1769885431822,-780.1416,0.00014757,2]
[404154768,1769885431992,-25216.0168594,0.00014757,2]
[404154789,1769885437805,-1028.257643,0.00014484,2]
[404154790,1769885437815,-37071.742357,0.00014757,2]
[404154791,1769885437827,-661.66743296,0.00014757,2]
[404154792,1769885437839,-377.63481764,0.00014757,2]
[404154793,1769885437859,-7600.0,0.00014757,2]
[404154794,1769885437870,-1299.0516,0.00014757,2]
[404154795,1769885437884,-775.000005,0.00014757,2]
[404154796,1769885437916,-79416.972328,0.00014757,2]
[404154797,1769885437925,-1246.8164,0.00014757,2]
[404154798,1769885437935,-150.00015247,0.00014782,2]
[404154799,1769885437944,-285.43134816,0.00014856,2]
[404154800,1769885437953,-500.0,0.00014856,2]
[404154801,1769885437963,-250.0,0.00015,2]
[404154802,1769885437973,-11145.81352809,0.00015017,2]
[404154803,1769885437983,-4719.23,0.00015199,2]
[404154804,1769885437992,-220.33,0.00015303,2]
[404154805,1769885438002,-11145.81352809,0.00015378,2]
[404154806,1769885438011,-715.54,0.00015513,2]
[404154807,1769885438021,-715.54,0.00015562,2]
[404154808,1769885438031,-151.0,0.00015589,2]
[404154809,1769885438041,-715.54,0.00015612,2]
[404154810,1769885438051,-715.54,0.00015661,2]
[404154811,1769885438062,-715.54,0.00015711,2]
[404154812,1769885438072,-233.01635665,0.00015731,2]
[404154813,1769885438082,-11145.81352809,0.00015738,2]
[404154815,1769885438092,-715.54,0.0001576,2]
[404154816,1769885438102,-715.54,0.0001581,2]
[404154818,1769885438112,-715.54,0.00015859,2]
[404154820,1769885438122,-715.54,0.00015909,2]
[404154822,1769885438137,-195.0,0.00015932,2]
[404154825,1769885438148,-715.54,0.00015958,2]
[404154827,1769885438157,-715.54,0.00016008,2]
[404154829,1769885438168,-715.54,0.00016057,2]
[404154831,1769885438178,-11145.81352809,0.00016098,2]
[404154833,1769885438188,-715.54,0.00016106,2]
[404154835,1769885438199,-304.75,0.00016116,2]
[404154837,1769885438208,-299.99,0.00016116,4]
[404154839,1769885438218,-150.99,0.00016116,2]
[404154841,1769885438228,-1680.0,0.00016122,2]
[404154843,1769885438237,-715.54,0.00016156,2]
[404154845,1769885438248,-262.62,0.0001618,2]
[404154846,1769885438258,-161.8,0.00016196,2]
[404154848,1769885438268,-500.0,0.00016204,2]
[404154850,1769885438278,-349.33525175,0.00016204,2]
[404154851,1769885438288,-349.66808077,0.00016204,2]
[404154852,1769885438297,-500.0,0.00016204,2]
[404154853,1769885438307,-424.47613102,0.00016204,2]
[404154854,1769885438316,-715.54,0.00016205,2]
[404154855,1769885438326,-715.54,0.00016255,2]
[404154856,1769885438335,-200.0,0.00016281,2]
[404154857,1769885438344,-715.54,0.00016304,2]
[404154858,1769885438354,-1600.0,0.00016335,2]
[404154859,1769885438363,-3240.0,0.00016345,2]
[404154860,1769885438372,-715.54,0.00016354,2]
[404154861,1769885438386,-500.0,0.00016364,2]
[404154862,1769885438395,-185.85627169,0.00016373,2]
[404154863,1769885438405,-500.0,0.00016373,2]
[404154865,1769885438415,-500.0,0.00016373,2]
[404154866,1769885438425,-500.80905886,0.00016373,2]
[404154868,1769885438435,-168.0859562,0.00016373,2]
[404154870,1769885438446,-500.5694062,0.00016373,2]
[404154872,1769885438456,-490.46772664,0.00016373,2]
[404154874,1769885438466,-459.79400119,0.00016373,2]
[404154876,1769885438476,-500.0,0.00016373,2]
[404154878,1769885438485,-500.0,0.00016373,2]
[404154881,1769885438495,-500.0,0.00016373,2]
[404154883,1769885438504,-500.0,0.00016373,2]
[404154885,1769885438514,-500.0,0.00016373,2]
[404154887,1769885438523,-500.0,0.00016373,2]
[404154889,1769885438532,-500.0,0.00016373,2]
[404154890,1769885438542,-500.0,0.00016373,2]
[404154891,1769885438552,-500.0,0.00016373,2]
[404154893,1769885438561,-500.0,0.00016373,2]
[404154894,1769885438571,-500.0,0.00016373,2]
[404154896,1769885438581,-500.0,0.00016373,2]
[404154898,1769885438590,-500.0,0.00016373,2]
[404154900,1769885438600,-500.0,0.00016373,2]
[404154903,1769885438610,-666.76,0.00016373,2]
[404154905,1769885438620,-715.54,0.00016403,2]
[404154907,1769885438634,-210.93089075,0.00016438,2]
[404154909,1769885438644,-500.0,0.00016438,2]
[404154911,1769885438653,-500.0,0.00016438,2]
[404154913,1769885438664,-251.11058608,0.00016438,2]
[404154915,1769885438675,-500.0,0.00016438,2]
[404154917,1769885438684,-500.0,0.00016438,2]
[404154918,1769885438695,-500.0,0.00016438,2]
[404154920,1769885438705,-500.0,0.00016438,2]
[404154922,1769885438715,-500.0,0.00016438,2]
[404154925,1769885438726,-500.0,0.00016438,2]
[404154926,1769885438736,-500.0,0.00016438,2]
[404154928,1769885438746,-500.0,0.00016438,2]
[404154930,1769885438756,-500.0,0.00016438,2]
[404154932,1769885438766,-715.54,0.00016453,2]
[404154935,1769885438777,-11145.81352809,0.00016459,2]
[404154937,1769885438787,-666.76,0.00016647,2]
[404154939,1769885438796,-200.0,0.00016792,2]
[404154940,1769885438806,-11145.81352809,0.00016819,2]
[404154942,1769885438816,-185.57491725,0.00016921,2]
[404154944,1769885438826,-975.39944629,0.00016921,2]
[404154947,1769885438836,-666.76,0.00016921,2]
[404154949,1769885438845,-11145.81352809,0.00017179,2]
[404154950,1769885438855,-666.76,0.00017195,2]
[404154953,1769885438864,-271.46575438,0.00017251,2]
[404154954,1769885438881,-666.76,0.00017468,2]
[404154956,1769885438891,-250.0,0.00017535,2]
[404154959,1769885438901,-500.0,0.00017535,2]
[404154961,1769885438912,-150.0,0.00017535,2]
[404154963,1769885438921,-500.0,0.00017535,2]
[404154965,1769885438931,-500.0,0.00017535,2]
[404154967,1769885438941,-500.0,0.00017535,2]
[404154969,1769885438950,-500.0,0.00017535,2]
[404154971,1769885438959,-150.0,0.00017535,2]
[404154973,1769885438968,-500.0,0.00017535,2]
[404154975,1769885438978,-150.0,0.00017535,2]
[404154977,1769885438987,-165.88836911,0.00017535,2]
[404154979,1769885438997,-150.0,0.00017535,2]
[404154981,1769885439007,-500.0,0.00017535,2]
[404154983,1769885439016,-150.0,0.00017535,2]
[404154984,1769885439025,-500.0,0.00017535,2]
[404154986,1769885439035,-500.0,0.00017535,2]
[404154988,1769885439046,-500.0,0.00017535,2]
[404154991,1769885439056,-150.0,0.00017535,2]
[404154993,1769885439066,-150.0,0.00017535,2]
[404154995,1769885439076,-500.0,0.00017535,2]
[404154997,1769885439086,-500.0,0.00017535,2]
[404154999,1769885439095,-500.0,0.00017535,2]
[404155000,1769885439105,-500.0,0.00017535,2]
[404155002,1769885439115,-150.0,0.00017535,2]
[404155004,1769885439125,-500.0,0.00017535,2]
[404155006,1769885439135,-150.0,0.00017535,2]
[404155008,1769885439145,-500.0,0.00017535,2]
[404155010,1769885439154,-500.0,0.00017535,2]
[404155012,1769885439165,-500.0,0.00017535,2]
[404155014,1769885439176,-2287.0,0.00017538,2]
[404155016,1769885439187,-11145.81352809,0.0001754,2]
[404155018,1769885439197,-2287.0,0.00017583,2]
[404155020,1769885439207,-500.0,0.0001759,2]
[404155022,1769885439217,-200.0,0.0001759,2]
[404155024,1769885439228,-500.0,0.0001759,2]
[404155026,1769885439237,-537.74266754,0.0001759,2]
[404155028,1769885439247,-500.0,0.0001759,2]
[404155030,1769885439257,-500.0,0.0001759,2]
[404155032,1769885439266,-202.27114537,0.0001759,2]
[404155034,1769885439276,-500.0,0.0001759,2]
[404155036,1769885439286,-150.0,0.0001759,2]
[404155038,1769885439296,-500.0,0.0001759,2]
[404155040,1769885439307,-500.0,0.0001759,2]
[404155042,1769885439316,-500.0,0.0001759,2]
[404155044,1769885439326,-150.0,0.0001759,2]
[404155046,1769885439336,-500.0,0.0001759,2]
[404155048,1769885439345,-500.0,0.0001759,2]
[404155051,1769885439355,-500.0,0.0001759,2]
[404155053,1769885439365,-500.0,0.0001759,2]
[404155054,1769885439376,-500.0,0.0001759,2]
[404155057,1769885439386,-150.0,0.0001759,2]
[404155059,1769885439396,-500.0,0.0001759,2]
[404155061,1769885439405,-150.0,0.0001759,2]
[404155063,1769885439415,-500.0,0.0001759,2]
[404155065,1769885439424,-500.0,0.0001759,2]
[404155067,1769885439434,-500.0,0.0001759,2]
[404155068,1769885439443,-2287.0,0.00017608,2]
[404155071,1769885439452,-19377.67254791,0.00017611,2]
[404155073,1769885439462,-311.48,0.00017625,2]
[404155074,1769885439472,-2287.0,0.00017629,2]
[404155077,1769885439482,-182.99387462,0.0001764,2]
[404155079,1769885439492,-300.0,0.00017645,2]
[404155081,1769885439502,-500.0,0.00017645,2]
[404155083,1769885439511,-500.0,0.00017645,2]
[404155085,1769885439521,-500.0,0.00017645,2]
[404155086,1769885439530,-150.0,0.00017645,2]
[404155088,1769885439539,-500.0,0.00017645,2]
[404155090,1769885439549,-500.0,0.00017645,2]
[404155092,1769885439558,-500.0,0.00017645,2]
[404155094,1769885439567,-500.0,0.00017645,2]
[404155096,1769885439577,-150.0,0.00017645,2]
[404155099,1769885439587,-500.0,0.00017645,2]
[404155101,1769885439596,-500.0,0.00017645,2]
[404155104,1769885439607,-303.9607539,0.00017645,2]
[404155107,1769885439620,-500.0,0.00017645,2]
[404155109,1769885439632,-500.0,0.00017645,2]
[404155111,1769885439642,-155.37592128,0.00017645,2]
[404155113,1769885439651,-150.0,0.00017645,2]
[404155115,1769885439662,-150.0,0.00017645,2]
[404155117,1769885439671,-304.95816503,0.00017645,2]
[404155119,1769885439680,-327.45236989,0.00017645,2]
[404155121,1769885439694,-500.0,0.00017645,2]
[404155123,1769885439703,-838.0,0.0001768,2]
[404155125,1769885439712,-1000.0,0.00017681,2]
[404155127,1769885439721,-1000.0,0.00017681,2]